[Event "CCT Chessable Masters Place D-III 2024"]
[Site "Online"]
[Date "2024.02.01"]
[Round "1"]
[White "Kravtsiv, Martyn"]
[Black "Demchenko, Anton"]
[Result "0-1"]
[ECO "C79"]
[WhiteElo "2598"]
[BlackElo "2609"]
[Annotator "ChessBase"]
[PlyCount "98"]
[EventDate "2024.01.12"]
[EventType "k.o."]
[EventCountry "NET"]
[SourceTitle "playchess.com"]
[Source "ChessBase"]
[SourceQuality "1"]
[TimeControl "600+2"]

1. e4 {[%emt 0:00:05]} e5 {[%emt 0:00:04]} 2. Nf3 {[%emt 0:00:02]} Nc6 {[%emt 0:00:02]} 3. Bb5 {[%emt 0:00:02]} a6 {[%emt 0:00:05]} 4. Ba4 {[%emt 0:00:01]} Nf6 {[%emt 0:00:06]} 5. O-O {[%emt 0:00:03]} d6 {[%emt 0:00:12]} 6. Re1 {[%emt 0:01:31]} Bg4 {[%emt 0:00:03]} 7. c4 {[%emt 0:00:46]} Nd7 {[%emt 0:00:19]} 8. Bxc6 {[%emt 0:01:26]} bxc6 {[%emt 0:00:03]} 9. h3 {[%emt 0:00:01]} Bxf3 {[%emt 0:00:13]} 10. Qxf3 {[%emt 0:00:01]} Nc5 {[%emt 0:00:16]} 11. d3 {[%emt 0:00:34]} Ne6 {[%emt 0:00:05]} 12. Nc3 {[%emt 0:00:14]} Be7 {[%emt 0:00:11]} 13. Ne2 {[%emt 0:00:05]} O-O {[%emt 0:00:06]} 14. Be3 {[%emt 0:00:01]} c5 {[%emt 0:00:02]} 15. Rab1 {[%emt 0:00:45]} a5 {[%emt 0:00:24]} 16. g3 {[%emt 0:00:40]} a4 {[%emt 0:01:09]} 17. Qg2 {[%emt 0:00:08]} Rb8 {[%emt 0:01:17]} 18. Rf1 {[%emt 0:00:08]} Bf6 {[%emt 0:01:37]} 19. Nc3 {[%emt 0:00:13]} c6 {[%emt 0:01:05]} 20. Nxa4 {[%emt 0:00:12]} Qa5 {[%emt 0:00:02]} 21. b3 {[%emt 0:00:10]} g6 {[%emt 0:00:01]} 22. Kh1 {[%emt 0:00:20]} Qc7 {[%emt 0:01:00]} 23. f4 {[%emt 0:00:39]} exf4 {[%emt 0:00:01]} 24. gxf4 {[%emt 0:00:01]} Bd4 {[%emt 0:00:00]} 25. Bxd4 {[%emt 0:00:03]} Nxd4 {[%emt 0:00:01]} 26. f5 {[%emt 0:00:00]} Kh8 {[%emt 0:00:13]} 27. f6 {[%emt 0:00:03]} Rbe8 {[%emt 0:00:27]} 28. Nc3 {[%emt 0:00:21]} Re5 {[%emt 0:00:04]} 29. Rb2 {[%emt 0:01:10]} Rfe8 {[%emt 0:00:10]} 30. Ne2 {[%emt 0:00:25]} Ne6 {[%emt 0:00:10]} 31. Ng3 {[%emt 0:00:23]} h6 {[%emt 0:00:14]} 32. b4 {[%emt 0:00:07]} cxb4 {[%emt 0:00:12]} 33. Rxb4 {[%emt 0:00:00]} Ra8 {[%emt 0:00:36]} 34. Rfb1 {[%emt 0:00:12]} Qd8 {[%emt 0:00:01]} 35. Qf2 {[%emt 0:00:03]} Rea5 {[%emt 0:00:07]} 36. R1b2 {[%emt 0:00:01]} Kg8 {[%emt 0:00:19]} 37. d4 {[%emt 0:00:05]} c5 {[%emt 0:00:03]} 38. Rb7 {[%emt 0:00:04]} cxd4 {[%emt 0:00:04]} 39. Nf5 {[%emt 0:00:02]} gxf5 {[%emt 0:00:06]} 40. Qh4 {[%emt 0:00:01]} Rxa2 {[%emt 0:00:07]} 41. Rxa2 {[%emt 0:00:06]} Rxa2 {[%emt 0:00:01]} 42. Qg3+ {[%emt 0:00:06]} Kf8 {[%emt 0:00:04]} 43. exf5 {[%emt 0:00:01]} Qa8 {[%emt 0:00:01]} 44. Qxd6+ {[%emt 0:00:03]} Kg8 {[%emt 0:00:01]} 45. Qd5 {[%emt 0:00:02]} Ra1+ {[%emt 0:00:01]} 46. Kh2 {[%emt 0:00:00]} Qa2+ {[%emt 0:00:01]} 47. Kg3 {[%emt 0:00:02]} Rg1+ {[%emt 0:00:00]} 48. Kf3 {[%emt 0:00:04]} Ng5+ {[%emt 0:00:03]} 49. Kf4 {[%emt 0:00:05]} Qh2# {[%emt 0:00:00]} 0-1

[Event "CCT Chessable Masters Place D-III 2024"]
[Site "Online"]
[Date "2024.02.01"]
[Round "1"]
[White "Yoo, Christopher Woojin"]
[Black "Hakobyan, Aram"]
[Result "1/2-1/2"]
[ECO "E05"]
[WhiteElo "2595"]
[BlackElo "2616"]
[Annotator "ChessBase"]
[PlyCount "124"]
[EventDate "2024.01.12"]
[EventType "k.o."]
[EventCountry "NET"]
[SourceTitle "playchess.com"]
[Source "ChessBase"]
[SourceQuality "1"]
[TimeControl "600+2"]

1. d4 {[%emt 0:00:08]} Nf6 {[%emt 0:00:03]} 2. Nf3 {[%emt 0:00:01]} d5 {[%emt 0:00:01]} 3. c4 {[%emt 0:00:01]} e6 {[%emt 0:00:01]} 4. g3 {[%emt 0:00:02]} Be7 {[%emt 0:00:02]} 5. Bg2 {[%emt 0:00:01]} O-O {[%emt 0:00:00]} 6. O-O {[%emt 0:00:01]} dxc4 {[%emt 0:00:00]} 7. Qc2 {[%emt 0:00:12]} a6 {[%emt 0:00:02]} 8. a4 {[%emt 0:00:15]} Bd7 {[%emt 0:00:04]} 9. Bg5 {[%emt 0:00:50]} Bc6 {[%emt 0:00:05]} 10. Nc3 {[%emt 0:00:30]} Nd5 {[%emt 0:00:11]} 11. Bxe7 {[%emt 0:00:33]} Qxe7 {[%emt 0:00:00]} 12. e4 {[%emt 0:00:39]} Nxc3 {[%emt 0:00:20]} 13. bxc3 {[%emt 0:00:03]} Nd7 {[%emt 0:00:08]} 14. Rfe1 {[%emt 0:00:38]} b5 {[%emt 0:00:11]} 15. d5 {[%emt 0:00:20]} Bb7 {[%emt 0:00:02]} 16. Nd4 {[%emt 0:00:01]} e5 {[%emt 0:01:43]} 17. Nf5 {[%emt 0:00:04]} Qf6 {[%emt 0:00:01]} 18. axb5 {[%emt 0:00:56]} axb5 {[%emt 0:00:01]} 19. Qb2 {[%emt 0:00:01]} Qb6 {[%emt 0:00:41]} 20. Rab1 {[%emt 0:00:08]} Ra5 {[%emt 0:00:21]} 21. Qd2 {[%emt 0:00:42]} h6 {[%emt 0:00:46]} 22. Bf1 {[%emt 0:02:24]} Qc5 {[%emt 0:00:05]} 23. Bh3 {[%emt 0:00:36]} Rd8 {[%emt 0:01:28]} 24. Ra1 {[%emt 0:01:09]} Rxa1 {[%emt 0:00:36]} 25. Rxa1 {[%emt 0:00:00]} Nf6 {[%emt 0:00:04]} 26. Qe2 {[%emt 0:00:22]} Bc8 {[%emt 0:00:45]} 27. Ra8 {[%emt 0:00:03]} Qf8 {[%emt 0:00:00]} 28. Qb2 {[%emt 0:00:16]} Nxe4 {[%emt 0:00:19]} 29. Qxb5 {[%emt 0:00:02]} Bxf5 {[%emt 0:00:48]} 30. Rxd8 {[%emt 0:00:01]} Qxd8 {[%emt 0:00:00]} 31. Bxf5 {[%emt 0:00:00]} Nd6 {[%emt 0:00:01]} 32. Qb1 {[%emt 0:00:01]} Nxf5 {[%emt 0:00:37]} 33. Qxf5 {[%emt 0:00:02]} Qxd5 {[%emt 0:00:00]} 34. Qc8+ {[%emt 0:00:00]} Kh7 {[%emt 0:00:00]} 35. Qxc7 {[%emt 0:00:01]} f5 {[%emt 0:00:07]} 36. h4 {[%emt 0:00:03]} Qd1+ {[%emt 0:00:19]} 37. Kg2 {[%emt 0:00:03]} Qe2 {[%emt 0:00:03]} 38. Qf7 {[%emt 0:00:05]} Qe4+ {[%emt 0:00:04]} 39. Kg1 {[%emt 0:00:03]} f4 {[%emt 0:00:03]} 40. h5 {[%emt 0:00:01]} f3 {[%emt 0:00:33]} 41. Kh2 {[%emt 0:00:01]} Qg4 {[%emt 0:00:02]} 42. Qe8 {[%emt 0:00:03]} Qf5 {[%emt 0:00:05]} 43. Kg1 {[%emt 0:00:01]} Qb1+ {[%emt 0:00:24]} 44. Kh2 {[%emt 0:00:02]} Qc2 {[%emt 0:00:03]} 45. Kg1 {[%emt 0:00:01]} Qf5 {[%emt 0:00:01]} 46. Kh2 {[%emt 0:00:02]} e4 {[%emt 0:00:00]} 47. Kg1 {[%emt 0:00:01]} Qg4 {[%emt 0:00:03]} 48. Kh2 {[%emt 0:00:02]} e3 {[%emt 0:00:11]} 49. fxe3 {[%emt 0:00:01]} f2 {[%emt 0:00:13]} 50. Kg2 {[%emt 0:00:01]} Qf5 {[%emt 0:00:02]} 51. Kf1 {[%emt 0:00:02]} Qf3 {[%emt 0:00:02]} 52. Qg6+ {[%emt 0:00:03]} Kg8 {[%emt 0:00:01]} 53. Qe8+ {[%emt 0:00:01]} Kh7 {[%emt 0:00:00]} 54. Qg6+ {[%emt 0:00:01]} Kh8 {[%emt 0:00:00]} 55. e4 {[%emt 0:00:05]} Qe3 {[%emt 0:00:07]} 56. Qe8+ {[%emt 0:00:04]} Kh7 {[%emt 0:00:00]} 57. Qg6+ {[%emt 0:00:03]} Kh8 {[%emt 0:00:01]} 58. Kg2 {[%emt 0:00:03]} Qe2 {[%emt 0:00:05]} 59. Qe8+ {[%emt 0:00:01]} Kh7 {[%emt 0:00:00]} 60. Qg6+ {[%emt 0:00:00]} Kh8 {[%emt 0:00:01]} 61. Qe8+ {[%emt 0:00:01]} Kh7 {[%emt 0:00:00]} 62. Qg6+ {[%emt 0:00:00]} Kh8 {[%emt 0:00:01]} 1/2-1/2

[Event "CCT Chessable Masters Place D-III 2024"]
[Site "Online"]
[Date "2024.02.01"]
[Round "1"]
[White "Lupulescu, Constantin"]
[Black "Sargissian, Gabriel"]
[Result "1/2-1/2"]
[ECO "D35"]
[WhiteElo "2589"]
[BlackElo "2672"]
[Annotator "ChessBase"]
[PlyCount "79"]
[EventDate "2024.01.12"]
[EventType "k.o."]
[EventCountry "NET"]
[SourceTitle "playchess.com"]
[Source "ChessBase"]
[SourceQuality "1"]
[TimeControl "600+2"]

1. c4 {[%emt 0:00:04]} e6 {[%emt 0:00:04]} 2. Nc3 {[%emt 0:00:03]} d5 {[%emt 0:00:02]} 3. d4 {[%emt 0:00:01]} Nf6 {[%emt 0:00:04]} 4. cxd5 {[%emt 0:00:01]} exd5 {[%emt 0:00:01]} 5. Bf4 {[%emt 0:00:01]} Bd6 {[%emt 0:00:15]} 6. Bxd6 {[%emt 0:00:02]} Qxd6 {[%emt 0:00:02]} 7. e3 {[%emt 0:00:01]} Bf5 {[%emt 0:00:14]} 8. Nge2 {[%emt 0:00:02]} O-O {[%emt 0:00:50]} 9. Ng3 {[%emt 0:00:02]} Bg6 {[%emt 0:00:01]} 10. h4 {[%emt 0:00:01]} h6 {[%emt 0:00:02]} 11. h5 {[%emt 0:00:03]} Bh7 {[%emt 0:00:03]} 12. Bd3 {[%emt 0:00:01]} Bxd3 {[%emt 0:00:07]} 13. Qxd3 {[%emt 0:00:03]} Nc6 {[%emt 0:00:18]} 14. O-O {[%emt 0:00:25]} Ne7 {[%emt 0:00:27]} 15. b4 {[%emt 0:01:10]} c6 {[%emt 0:00:28]} 16. b5 {[%emt 0:00:57]} cxb5 {[%emt 0:00:02]} 17. Nxb5 {[%emt 0:00:26]} Qd7 {[%emt 0:00:02]} 18. Rfb1 {[%emt 0:01:09]} Rfc8 {[%emt 0:00:15]} 19. Nc3 {[%emt 0:00:20]} Rc4 {[%emt 0:00:36]} 20. Nce2 {[%emt 0:00:56]} b5 {[%emt 0:00:32]} 21. Nf4 {[%emt 0:02:06]} Rac8 {[%emt 0:00:09]} 22. Qd1 {[%emt 0:00:05]} Ne4 {[%emt 0:01:30]} 23. Nxe4 {[%emt 0:00:28]} dxe4 {[%emt 0:00:00]} 24. Rc1 {[%emt 0:00:17]} Nd5 {[%emt 0:00:10]} 25. Nxd5 {[%emt 0:00:26]} Qxd5 {[%emt 0:00:01]} 26. Rxc4 {[%emt 0:00:19]} bxc4 {[%emt 0:00:03]} 27. Rc1 {[%emt 0:00:10]} c3 {[%emt 0:00:02]} 28. Qb3 {[%emt 0:00:05]} Qc6 {[%emt 0:00:49]} 29. Qc2 {[%emt 0:00:28]} Qb5 {[%emt 0:00:34]} 30. Qxe4 {[%emt 0:00:26]} c2 {[%emt 0:00:03]} 31. Qg4 {[%emt 0:00:02]} Rc3 {[%emt 0:00:30]} 32. e4 {[%emt 0:00:06]} Qb2 {[%emt 0:00:15]} 33. Qf4 {[%emt 0:00:04]} Rd3 {[%emt 0:00:07]} 34. Kh2 {[%emt 0:00:02]} Rd1 {[%emt 0:00:12]} 35. Qc7 {[%emt 0:00:01]} Rxc1 {[%emt 0:01:11]} 36. Qc8+ {[%emt 0:00:03]} Kh7 {[%emt 0:00:00]} 37. Qf5+ {[%emt 0:00:00]} Kg8 {[%emt 0:00:01]} 38. Qc8+ {[%emt 0:00:01]} Kh7 {[%emt 0:00:01]} 39. Qf5+ {[%emt 0:00:00]} Kg8 {[%emt 0:00:02]} 40. Qc8+ {[%emt 0:00:01]} 1/2-1/2

[Event "CCT Chessable Masters Place D-III 2024"]
[Site "Online"]
[Date "2024.02.01"]
[Round "1"]
[White "bardiya_Daneshvar"]
[Black "Bernadskiy, Vitaliy"]
[Result "0-1"]
[ECO "E11"]
[WhiteElo "2588"]
[BlackElo "2566"]
[Annotator "ChessBase"]
[PlyCount "94"]
[EventDate "2024.01.12"]
[EventType "k.o."]
[EventCountry "NET"]
[SourceTitle "playchess.com"]
[Source "ChessBase"]
[SourceQuality "1"]
[TimeControl "600+2"]

1. d4 {[%emt 0:00:02]} Nf6 {[%emt 0:00:03]} 2. c4 {[%emt 0:00:01]} e6 {[%emt 0:00:01]} 3. Nf3 {[%emt 0:00:00]} Bb4+ {[%emt 0:00:06]} 4. Nbd2 {[%emt 0:00:03]} O-O {[%emt 0:00:03]} 5. a3 {[%emt 0:00:02]} Be7 {[%emt 0:00:01]} 6. e4 {[%emt 0:00:04]} d6 {[%emt 0:00:01]} 7. Bd3 {[%emt 0:00:07]} e5 {[%emt 0:00:22]} 8. d5 {[%emt 0:00:02]} a5 {[%emt 0:00:15]} 9. O-O {[%emt 0:00:02]} Nbd7 {[%emt 0:00:06]} 10. Bc2 {[%emt 0:00:19]} Nc5 {[%emt 0:00:06]} 11. b3 {[%emt 0:00:08]} Bg4 {[%emt 0:00:02]} 12. h3 {[%emt 0:00:10]} Bh5 {[%emt 0:00:01]} 13. Bb2 {[%emt 0:00:02]} c6 {[%emt 0:00:24]} 14. Qe2 {[%emt 0:00:39]} Qb6 {[%emt 0:00:25]} 15. Qe3 {[%emt 0:00:24]} Bg6 {[%emt 0:00:22]} 16. Rfc1 {[%emt 0:01:03]} Rfc8 {[%emt 0:00:03]} 17. Bc3 {[%emt 0:00:34]} cxd5 {[%emt 0:00:27]} 18. cxd5 {[%emt 0:00:10]} Na4 {[%emt 0:00:18]} 19. Qxb6 {[%emt 0:00:42]} Nxb6 {[%emt 0:00:00]} 20. Bb1 {[%emt 0:00:10]} a4 {[%emt 0:00:37]} 21. b4 {[%emt 0:00:39]} Nc4 {[%emt 0:00:02]} 22. Kf1 {[%emt 0:01:35]} Nxd2+ {[%emt 0:00:44]} 23. Nxd2 {[%emt 0:00:04]} Rc7 {[%emt 0:00:18]} 24. Bb2 {[%emt 0:00:09]} Rxc1+ {[%emt 0:00:01]} 25. Bxc1 {[%emt 0:00:01]} Rc8 {[%emt 0:00:02]} 26. Bb2 {[%emt 0:00:04]} Nh5 {[%emt 0:00:19]} 27. Bd3 {[%emt 0:00:47]} Nf4 {[%emt 0:00:02]} 28. Bb5 {[%emt 0:00:02]} f5 {[%emt 0:01:32]} 29. g3 {[%emt 0:01:39]} Nxh3 {[%emt 0:00:11]} 30. Rc1 {[%emt 0:01:05]} Rf8 {[%emt 0:00:04]} 31. Bd7 {[%emt 0:00:09]} Bg5 {[%emt 0:00:32]} 32. Rc2 {[%emt 0:00:05]} Bxd2 {[%emt 0:00:01]} 33. Rxd2 {[%emt 0:00:00]} Ng5 {[%emt 0:00:01]} 34. exf5 {[%emt 0:00:02]} Bxf5 {[%emt 0:00:00]} 35. Bxf5 {[%emt 0:00:03]} Rxf5 {[%emt 0:00:00]} 36. Rc2 {[%emt 0:00:01]} h5 {[%emt 0:00:17]} 37. Bc1 {[%emt 0:00:04]} Ne4 {[%emt 0:00:02]} 38. Kg2 {[%emt 0:00:01]} Kh7 {[%emt 0:00:29]} 39. f3 {[%emt 0:00:03]} Nf6 {[%emt 0:00:10]} 40. Rc7 {[%emt 0:00:00]} e4 {[%emt 0:00:01]} 41. fxe4 {[%emt 0:00:03]} Nxe4 {[%emt 0:00:02]} 42. Rxb7 {[%emt 0:00:02]} Rf2+ {[%emt 0:00:33]} 43. Kg1 {[%emt 0:00:01]} Rf3 {[%emt 0:00:00]} 44. Bf4 {[%emt 0:00:02]} Rxa3 {[%emt 0:00:03]} 45. Re7 {[%emt 0:00:01]} Nxg3 {[%emt 0:00:03]} 46. b5 {[%emt 0:00:02]} Rb3 {[%emt 0:00:04]} 47. Ra7 {[%emt 0:00:05]} Ne2+ {[%emt 0:00:02]} 0-1

[Event "CCT Chessable Masters Place D-III 2024"]
[Site "Online"]
[Date "2024.02.01"]
[Round "1"]
[White "ViIIagra"]
[Black "Fandorine"]
[Result "1/2-1/2"]
[ECO "A48"]
[WhiteElo "2586"]
[BlackElo "2618"]
[Annotator "ChessBase"]
[PlyCount "62"]
[EventDate "2024.01.12"]
[EventType "k.o."]
[EventCountry "NET"]
[SourceTitle "playchess.com"]
[Source "ChessBase"]
[SourceQuality "1"]
[TimeControl "600+2"]

1. d4 {[%emt 0:00:03]} Nf6 {[%emt 0:00:04]} 2. Bf4 {[%emt 0:00:03]} d6 {[%emt 0:00:02]} 3. Nf3 {[%emt 0:00:01]} g6 {[%emt 0:00:01]} 4. e3 {[%emt 0:00:02]} Bg7 {[%emt 0:00:01]} 5. Be2 {[%emt 0:00:11]} O-O {[%emt 0:00:02]} 6. O-O {[%emt 0:00:01]} c5 {[%emt 0:00:01]} 7. c3 {[%emt 0:00:22]} Qb6 {[%emt 0:00:02]} 8. Qc1 {[%emt 0:00:01]} Be6 {[%emt 0:00:09]} 9. h3 {[%emt 0:00:02]} Nc6 {[%emt 0:00:10]} 10. Nbd2 {[%emt 0:00:01]} cxd4 {[%emt 0:00:05]} 11. exd4 {[%emt 0:00:00]} Rac8 {[%emt 0:00:03]} 12. Be3 {[%emt 0:00:17]} Nd5 {[%emt 0:01:04]} 13. Nc4 {[%emt 0:00:13]} Qa6 {[%emt 0:00:01]} 14. Re1 {[%emt 0:01:35]} Nf4 {[%emt 0:02:57]} 15. Bxf4 {[%emt 0:02:03]} Bxc4 {[%emt 0:00:01]} 16. Qd2 {[%emt 0:00:18]} Bxe2 {[%emt 0:00:52]} 17. Rxe2 {[%emt 0:00:02]} Rfe8 {[%emt 0:00:01]} 18. Rae1 {[%emt 0:00:21]} Qxa2 {[%emt 0:01:22]} 19. d5 {[%emt 0:00:12]} Na5 {[%emt 0:00:02]} 20. Rxe7 {[%emt 0:00:03]} Rxe7 {[%emt 0:00:03]} 21. Rxe7 {[%emt 0:00:00]} Qb1+ {[%emt 0:00:37]} 22. Kh2 {[%emt 0:00:29]} Qf5 {[%emt 0:00:08]} 23. Nd4 {[%emt 0:01:32]} Qxd5 {[%emt 0:00:09]} 24. Qe2 {[%emt 0:01:10]} h6 {[%emt 0:00:15]} 25. Qg4 {[%emt 0:00:47]} Rf8 {[%emt 0:00:48]} 26. Qd7 {[%emt 0:00:32]} Bxd4 {[%emt 0:00:56]} 27. cxd4 {[%emt 0:00:00]} Nc6 {[%emt 0:00:01]} 28. Bxh6 {[%emt 0:00:01]} Qxd4 {[%emt 0:00:34]} 29. Bxf8 {[%emt 0:00:07]} Qf4+ {[%emt 0:00:00]} 30. Kg1 {[%emt 0:00:04]} Qc1+ {[%emt 0:00:01]} 31. Kh2 {[%emt 0:00:01]} Qf4+ {[%emt 0:00:00]} 1/2-1/2

[Event "CCT Chessable Masters Place D-III 2024"]
[Site "Online"]
[Date "2024.02.01"]
[Round "1"]
[White "Kovalev, Vladislav"]
[Black "Zlatan56"]
[Result "0-1"]
[ECO "C67"]
[WhiteElo "2579"]
[BlackElo "2635"]
[Annotator "NA"]
[PlyCount "124"]
[EventDate "2024.01.12"]
[EventType "k.o."]
[EventCountry "NET"]
[SourceTitle "playchess.com"]
[Source "ChessBase"]
[SourceQuality "1"]
[TimeControl "600+2"]

1. e4 {[%emt 0:00:04]} e5 {[%emt 0:00:04]} 2. Nf3 {[%emt 0:00:04]} Nc6 {[%emt 0:00:03]} 3. Bb5 {[%emt 0:00:03]} Nf6 {[%emt 0:01:46]} 4. O-O {[%emt 0:00:03]} Nxe4 {[%emt 0:00:04]} 5. Re1 {[%emt 0:00:03]} Nd6 {[%emt 0:00:03]} 6. Nxe5 {[%emt 0:00:02]} Be7 {[%emt 0:00:03]} 7. Bf1 {[%emt 0:00:02]} Nxe5 {[%emt 0:00:03]} 8. Rxe5 {[%emt 0:00:02]} O-O {[%emt 0:00:03]} 9. d4 {[%emt 0:00:03]} Ne8 {[%emt 0:00:04]} 10. Nc3 {[%emt 0:00:08]} Nf6 {[%emt 0:00:11]} 11. Qf3 {[%emt 0:01:02]} d6 {[%emt 0:00:11]} 12. Re1 {[%emt 0:00:05]} c6 {[%emt 0:00:10]} 13. Bd3 {[%emt 0:00:17]} Be6 {[%emt 0:00:18]} 14. h3 {[%emt 0:00:46]} Re8 {[%emt 0:00:05]} 15. Bg5 {[%emt 0:00:14]} h6 {[%emt 0:00:07]} 16. Bf4 {[%emt 0:00:05]} Qb6 {[%emt 0:00:36]} 17. Rad1 {[%emt 0:00:28]} Kf8 {[%emt 0:01:12]} 18. b3 {[%emt 0:00:41]} Qa5 {[%emt 0:00:22]} 19. Bd2 {[%emt 0:00:31]} Qh5 {[%emt 0:00:08]} 20. Qg3 {[%emt 0:00:32]} Rad8 {[%emt 0:00:34]} 21. Rxe6 {[%emt 0:00:26]} fxe6 {[%emt 0:00:03]} 22. Bg6 {[%emt 0:00:02]} Qa5 {[%emt 0:00:05]} 23. Ne2 {[%emt 0:00:33]} Qc7 {[%emt 0:00:39]} 24. Nf4 {[%emt 0:00:09]} Qd7 {[%emt 0:00:03]} 25. Bxe8 {[%emt 0:01:25]} Rxe8 {[%emt 0:00:02]} 26. Re1 {[%emt 0:00:06]} Bd8 {[%emt 0:00:15]} 27. Ng6+ {[%emt 0:00:05]} Kg8 {[%emt 0:00:20]} 28. c4 {[%emt 0:00:03]} Qf7 {[%emt 0:00:10]} 29. Nf4 {[%emt 0:00:12]} d5 {[%emt 0:00:20]} 30. Nd3 {[%emt 0:00:39]} Ne4 {[%emt 0:00:04]} 31. Qe3 {[%emt 0:00:03]} Bg5 {[%emt 0:00:05]} 32. f4 {[%emt 0:00:03]} Bf6 {[%emt 0:00:04]} 33. Bc1 {[%emt 0:00:23]} Qg6 {[%emt 0:00:13]} 34. Rf1 {[%emt 0:00:10]} Ng3 {[%emt 0:00:12]} 35. Re1 {[%emt 0:00:06]} Nf5 {[%emt 0:00:03]} 36. Qf3 {[%emt 0:00:05]} Nxd4 {[%emt 0:00:08]} 37. Qd1 {[%emt 0:00:05]} dxc4 {[%emt 0:00:19]} 38. bxc4 {[%emt 0:00:04]} Rd8 {[%emt 0:00:04]} 39. Ne5 {[%emt 0:00:26]} Qc2 {[%emt 0:00:24]} 40. Qg4 {[%emt 0:00:14]} Qf5 {[%emt 0:00:09]} 41. Qg3 {[%emt 0:00:12]} Bxe5 {[%emt 0:00:03]} 42. fxe5 {[%emt 0:00:02]} Rf8 {[%emt 0:00:05]} 43. Kh2 {[%emt 0:00:04]} Qf2 {[%emt 0:00:08]} 44. Qxf2 {[%emt 0:00:13]} Rxf2 {[%emt 0:00:02]} 45. Be3 {[%emt 0:00:02]} Nf3+ {[%emt 0:00:05]} 46. Kg3 {[%emt 0:00:03]} Nxe1 {[%emt 0:00:02]} 47. Bxf2 {[%emt 0:00:03]} Nd3 {[%emt 0:00:04]} 48. Bd4 {[%emt 0:00:04]} b5 {[%emt 0:00:10]} 49. cxb5 {[%emt 0:00:05]} cxb5 {[%emt 0:00:02]} 50. Kf3 {[%emt 0:00:02]} a5 {[%emt 0:00:06]} 51. Ke4 {[%emt 0:00:03]} Nb4 {[%emt 0:00:04]} 52. a3 {[%emt 0:00:04]} Nd5 {[%emt 0:00:04]} 53. Bc5 {[%emt 0:00:04]} Kf7 {[%emt 0:00:03]} 54. g4 {[%emt 0:00:02]} g6 {[%emt 0:00:06]} 55. Bf2 {[%emt 0:00:03]} b4 {[%emt 0:00:03]} 56. axb4 {[%emt 0:00:03]} axb4 {[%emt 0:00:02]} 57. Kd4 {[%emt 0:00:03]} h5 {[%emt 0:00:03]} 58. Be3 {[%emt 0:00:02]} hxg4 {[%emt 0:00:05]} 59. hxg4 {[%emt 0:00:04]} Nxe3 {[%emt 0:00:08]} 60. Kxe3 {[%emt 0:00:02]} Ke7 {[%emt 0:00:03]} 61. Kd4 {[%emt 0:00:02]} Kd7 {[%emt 0:00:03]} 62. Kc5 {[%emt 0:00:04]} b3 {[%emt 0:00:05]} 0-1

[Event "CCT Chessable Masters Place D-III 2024"]
[Site "Online"]
[Date "2024.02.01"]
[Round "1"]
[White "JSPrepz"]
[Black "Mishra, Abhimanyu"]
[Result "1-0"]
[ECO "A11"]
[WhiteElo "2570"]
[BlackElo "2627"]
[Annotator "ChessBase"]
[PlyCount "77"]
[EventDate "2024.01.12"]
[EventType "k.o."]
[EventCountry "NET"]
[SourceTitle "playchess.com"]
[Source "ChessBase"]
[SourceQuality "1"]
[TimeControl "600+2"]

1. Nf3 {[%emt 0:00:06]} d5 {[%emt 0:00:05]} 2. c4 {[%emt 0:00:04]} c6 {[%emt 0:00:02]} 3. g3 {[%emt 0:00:03]} Nf6 {[%emt 0:00:02]} 4. Bg2 {[%emt 0:00:00]} dxc4 {[%emt 0:00:02]} 5. O-O {[%emt 0:00:06]} Nbd7 {[%emt 0:00:04]} 6. Qc2 {[%emt 0:00:08]} Nb6 {[%emt 0:00:05]} 7. Na3 {[%emt 0:00:09]} Be6 {[%emt 0:00:06]} 8. Ng5 {[%emt 0:00:05]} Bg4 {[%emt 0:00:10]} 9. Nxc4 {[%emt 0:00:01]} Bxe2 {[%emt 0:00:11]} 10. Ne5 {[%emt 0:00:01]} Bh5 {[%emt 0:00:02]} 11. Re1 {[%emt 0:00:12]} h6 {[%emt 0:00:11]} 12. Nh3 {[%emt 0:00:03]} g5 {[%emt 0:03:09]} 13. b4 {[%emt 0:00:02]} a6 {[%emt 0:01:23]} 14. Bb2 {[%emt 0:00:06]} Bg7 {[%emt 0:01:24]} 15. g4 {[%emt 0:01:24]} Bg6 {[%emt 0:01:01]} 16. Nxg6 {[%emt 0:00:02]} fxg6 {[%emt 0:00:00]} 17. Qxg6+ {[%emt 0:00:00]} Kf8 {[%emt 0:00:02]} 18. f4 {[%emt 0:00:01]} Qe8 {[%emt 0:00:53]} 19. Qf5 {[%emt 0:00:34]} Qd7 {[%emt 0:00:12]} 20. Re6 {[%emt 0:00:20]} Qxd2 {[%emt 0:00:34]} 21. Bxf6 {[%emt 0:02:35]} Bxf6 {[%emt 0:00:06]} 22. Rxf6+ {[%emt 0:00:52]} exf6 {[%emt 0:00:02]} 23. Qxf6+ {[%emt 0:00:08]} Kg8 {[%emt 0:00:03]} 24. Qg6+ {[%emt 0:00:25]} Kf8 {[%emt 0:00:02]} 25. Rf1 {[%emt 0:00:00]} Qd4+ {[%emt 0:00:22]} 26. Kh1 {[%emt 0:00:01]} Ke7 {[%emt 0:00:03]} 27. fxg5 {[%emt 0:00:12]} Raf8 {[%emt 0:00:13]} 28. Re1+ {[%emt 0:00:39]} Kd8 {[%emt 0:00:08]} 29. gxh6 {[%emt 0:00:28]} Kc8 {[%emt 0:00:05]} 30. Ng5 {[%emt 0:00:21]} Qxb4 {[%emt 0:00:07]} 31. Rb1 {[%emt 0:00:19]} Qd2 {[%emt 0:00:04]} 32. Bxc6 {[%emt 0:00:26]} Qd4 {[%emt 0:00:11]} 33. Ne6 {[%emt 0:00:23]} Qc4 {[%emt 0:00:01]} 34. Nxf8 {[%emt 0:00:16]} bxc6 {[%emt 0:00:01]} 35. Qf5+ {[%emt 0:00:12]} Kb7 {[%emt 0:00:03]} 36. Nd7 {[%emt 0:00:05]} Ka7 {[%emt 0:00:03]} 37. Nxb6 {[%emt 0:00:03]} Qe2 {[%emt 0:00:02]} 38. Qd7+ {[%emt 0:00:02]} Kb8 {[%emt 0:00:01]} 39. Nd5+ {[%emt 0:00:03]} 1-0